Workbook

Sheet 時間
B1: 11:00 | C1: 12:00 | D1: 1:00 | H1: フランス軍 | I1: 連合軍 | K1: =天候!A20 -> LOSの最大HEX | L1: =天候!F20 -> 無限
A2: 10:00 | B2: :00 | E2: 2:00 | G2: 指揮 | K2: =天候!A21 -> 散開隊形の射撃射程HEX | L2: =天候!F21 -> 2
A3: 9:00 | B3: :20 | E3: 3:00 | G3: 騎兵突撃 | K3: =天候!A22 -> 騎兵突撃 | L3: =天候!F22 -> 可能
A4: 8:00 | B4: :40 | E4: 4:00 | G4: 移動 | K4: =天候!A23 -> 騎兵突撃のボーナス | L4: =天候!F23 -> 移動力＋５
B5: 7:00 | C5: 6:00 | D5: 5:00 | G5: 敵軍の防御射撃 | K5: =天候!A24 -> 歩兵射撃の可否 補正(%) | L5: =天候!F24 -> 0
A6: シート保護中 | D6: 午後1時は13と入力 | G6: 自軍の攻勢射撃 | K6: =天候!A25 -> 砲兵射撃の可否 補正(%) | L6: =天候!F25 -> 0
A7: 時間帯 | B7: 天候 | C7: 場所 | D7: 開始時 | E7: 開始分 | G7: 白兵戦 | K7: =天候!A26 -> 歩兵移動力補正(%) | L7: =天候!F26 -> 0
A8: 昼 | B8: 晴 | C8: =IF(B8="雷雨",天候変化!N31,"") ->  | D8: 8 | E8: 20 | G8: 回復 | K8: =天候!A27 -> 騎兵移動力補正(%) | L8: =天候!F27 -> 0
K9: =天候!A28 -> 砲兵移動力補正(%) | L9: =天候!F28 -> 0
A14: 天候条件設定 | C14: 現在＝ | D14: 標準

Sheet 移動
B1: 移動力 | F1: 移動力
B2: 印刷値 | C2: 補正後 | F2: 印刷値 | G2: 補正後
A3: 歩兵 | B3: 4 | C3: =B3*(100+天候!E$26)/100 -> 4 | E3: 砲兵 | F3: 4 | G3: =F3*(100+天候!E$28)/100 -> 4
B4: 5 | C4: =B4*(100+天候!E$26)/100 -> 5 | F4: 5 | G4: =F4*(100+天候!E$28)/100 -> 5
B5: 6 | C5: =B5*(100+天候!E$26)/100 -> 6 | F5: 6 | G5: =F5*(100+天候!E$28)/100 -> 6
B6: 7 | C6: =B6*(100+天候!E$26)/100 -> 7 | F6: 7 | G6: =F6*(100+天候!E$28)/100 -> 7
B7: 8 | C7: =B7*(100+天候!E$26)/100 -> 8 | F7: 8 | G7: =F7*(100+天候!E$28)/100 -> 8
B8: 9 | C8: =B8*(100+天候!E$26)/100 -> 9 | F8: 9 | G8: =F8*(100+天候!E$28)/100 -> 9
F9: 10 | G9: =F9*(100+天候!E$28)/100 -> 10
A10: 騎兵 | B10: 7 | C10: =B10*(100+天候!E$27)/100 -> 7 | F10: 11 | G10: =F10*(100+天候!E$28)/100 -> 11
B11: 8 | C11: =B11*(100+天候!E$27)/100 -> 8 | F11: 12 | G11: =F11*(100+天候!E$28)/100 -> 12
B12: 9 | C12: =B12*(100+天候!E$27)/100 -> 9
B13: 10 | C13: =B13*(100+天候!E$27)/100 -> 10
B14: 11 | C14: =B14*(100+天候!E$27)/100 -> 11
B15: 12 | C15: =B15*(100+天候!E$27)/100 -> 12
B16: 13 | C16: =B16*(100+天候!E$27)/100 -> 13
B17: 14 | C17: =B17*(100+天候!E$27)/100 -> 14
B18: 15 | C18: =B18*(100+天候!E$27)/100 -> 15
B19: 16 | C19: =B19*(100+天候!E$27)/100 -> 16

Sheet 射撃
B1: 目標 | D1: 備考 | F1: 計算用作業領域
A2: 地形防御値 | B2: 6
A3: 目標戦力数 | B3: 7 | F3: =IF(B3<10,0,B3-9) -> 0
A4: 隣接補正 | D4: 砲兵の目標の場合に隣接なら1、それ以外は空白（散弾射撃用） | F4: 補正後＝ | G4: 1.50999999
B6: 射撃側１ | C6: 射撃側２ | D6: 単独の場合は射撃側２の射撃値と戦力数を０
A7: 射撃値 | B7: 12 | D7: 縦隊、一般隊形、混乱または砲兵の場合
A8: 戦力数 | B8: 0 | C8: 0 | D8: 横隊、散開隊形、方陣の場合
A9: 掛算係数 | B9: 1 | C9: 3 | D9: 上記隊形のチャートの値を参照
A10: 割算係数 | B10: 1 | C10: 1 | D10: 方陣は３、混乱は２ | F10: =(B7+B8*B9)/B10 -> 12 | G10: =(C7+C8*C9)/C10 -> 0
A11: 指揮官修正（モラル値） | B11: 0 | C11: 1 | D11: 一緒なら印刷値、隣接HEXに居れば印刷値÷２（切捨て） | F11: =ROUNDDOWN(B12/10,0)*6+(B12-ROUNDDOWN(B12/10,0)*10)-B14-B11-F13 -> 18 | G11: =ROUNDDOWN(C12/10,0)*6+(C12-ROUNDDOWN(C12/10,0)*10)-C14-C11-G13 -> 18
A12: ユニットモラル値 | B12: 26 | C12: 21 | D12: モラル補正しない場合は0 | F12: =(F11*F10+G11*G10)/(F10+G10) -> 18
A13: 50%以上戦力損失 | B13: 0 | C13: 1 | D13: 損失ありなら１、その他は０ | F13: =IF(B13=1,-6,0) -> 0 | G13: =IF(C13=1,-6,0) -> -6
A14: 部隊モラル修正 | B14: 0 | C14: 0 | D14: 軍団・師団・旅団などの管理単位毎の修正値（マイナス）
A15: 英国ライフル中隊修正 | D15: 射撃側に英国ライフル中隊が居る場合は1、居ない場合は空白 | F15: セル色＝ | G15: 10086143 | H15: (注)マクロが動作すると、再度乱数が発生して上書される。
F16: 乱数２＝ | G16: =(ROUNDDOWN(RANDBETWEEN(100,699)/100,0)-1)*6+ROUNDDOWN(RANDBETWEEN(100,699)/100,0) -> 17 | H16: ：射撃結果判定用（１〜３６）
A17: 射撃側の兵科 | B17: 歩兵 | C17: 砲兵 | F17: =1+((天候!E24)/100) -> 1 | G17: =1+((天候!E25)/100) -> 1
A18: 射撃比 | B18: =($F$10+$G$10)*F17/$B$2 -> 2 | C18: =($F$10+$G$10)*G17/$B$2 -> 2 | D18: 時間帯・天候による補正 | F18: =ROUNDDOWN((18-$F$12)/3,0)+$F$3 -> 0 | G18: =ROUNDDOWN((18-$F$12)/3,0)+$F$3 -> 0
A19: ダイス修正値 | B19: =IF($B$12<>0,F18,$F$3) -> 0 | C19: =IF($B$12<>0,G18,$F$3) -> 0 | F19: 乱数１＝ | G19: =ROUNDDOWN(RANDBETWEEN(100,599)/100,0) -> 3 | H19: ：死傷種別用（１〜５）
A20: 射撃による損失 | B20: 1 | C20: 1 | D20: 判定後は色が変わる | F20: 乱数３＝ | G20: =ROUNDDOWN(RANDBETWEEN(100,699)/100,0)+ROUNDDOWN(RANDBETWEEN(100,699)/100,0) -> 6 | H20: ：脚負傷用（２〜１２）
A21: 指揮官の死傷 | B21: なし | F21: 乱数４＝ | G21: =ROUNDDOWN(RANDBETWEEN(100,699)/100,0) -> 3 | H21: ：腕負傷用（１〜６）

Sheet 白兵
B1: 攻撃側１ | C1: 攻撃側２ | D1: 防御側１ | E1: 防御側２ | H1: 計算用作業領域
A2: 白兵戦値 | B2: 12 | C2: 17 | D2: 14 | E2: 4
A3: 初期戦力数 | B3: 10 | C3: 8 | D3: 7 | E3: 6 | H3: 乱数１＝ | I3: =ROUNDDOWN(RANDBETWEEN(100,699)/100,0) -> 4 | J3: ：死傷種別用（１〜６）
A4: 現在戦力数 | B4: 9 | C4: 4 | D4: 3 | E4: 4 | F4: 単独の場合は攻撃側２、防御側２の現在戦力数を０ | H4: 乱数２＝ | I4: =(ROUNDDOWN(RANDBETWEEN(100,699)/100,0)-1)*6+ROUNDDOWN(RANDBETWEEN(100,699)/100,0) -> 11 | J4: ：白兵戦結果判定用（１〜３６）
A5: 掛算係数 | B5: 1 | C5: 1 | D5: 1 | E5: 1 | F5: 騎兵突撃は２
A6: 割算係数 | B6: 1 | C6: 1 | D6: 1 | E6: 1 | F6: 散開、混乱、疲労（騎兵）は２、 方陣、潰走、消耗（騎兵）は３
H7: =IF(B3/2<B4,0,-6) -> 0 | I7: =IF(C3/2<C4,0,-6) -> -6 | J7: =IF(D3/2<D4,0,-6) -> -6 | K7: 0 | L7: 50%損失判定
A8: 指揮官修正（白兵戦値） | B8: 0 | C8: 0 | D8: 0 | E8: 0 | F8: 一緒なら印刷値、隣接HEXに居れば印刷値÷２（切捨て） | H8: =IF(B8>C8,B8,C8) -> 0 | J8: =IF(D8>E8,D8,E8) -> 0
A9: ユニットモラル値 | B9: 25 | C9: 32 | D9: 26 | E9: 24 | F9: モラル補正しない場合は0 | H9: =ROUNDDOWN(B9/10,0)*6+(B9-ROUNDDOWN(B9/10,0)*10)-H7-B10-B8*3 -> 17 | I9: =ROUNDDOWN(C9/10,0)*6+(C9-ROUNDDOWN(C9/10,0)*10)-I7-C10-C8*3 -> 26 | J9: =ROUNDDOWN(D9/10,0)*6+(D9-ROUNDDOWN(D9/10,0)*10)-J7-D10-D8*3 -> 27 | K9: =ROUNDDOWN(E9/10,0)*6+(E9-ROUNDDOWN(E9/10,0)*10)-K7-E10-E8*3 -> 16
A10: 部隊モラル修正 | B10: 0 | C10: 0 | D10: -3 | E10: 0 | F10: 軍団・師団・旅団などの管理単位毎の修正値（マイナス） | I10: =(H9*B4+I9*C4)/(B4+C4) -> 19.76923077 | K10: =(J9*D4+K9*E4)/(D4+E4) -> 20.71428571
H11: =ROUNDDOWN((K10-I10)/3,0) -> 0
A13: 戦力比 | B13: =(B2*B4/B3*B5/B6+C2*C4/C3*C5/C6)/(D2*D4/D3*D5/D6+E2*E4/E3*E5/E6) -> 2.226923077
A14: ダイス修正値 | B14: =IF(B9<>0,H11,H8-J8) -> 0
B15: 攻撃側 | D15: 防御側
A16: 白兵戦結果 | B16: 2 | D16: モラルチェックと2 | F16: 判定後は色が変わる
A17: 指揮官の死傷

Sheet 追撃
B1: 騎兵１ | C1: 騎兵２ | F1: 計算用作業領域
A2: 戦力数 | B2: 12 | C2: 5 | D2: 単独の場合は騎兵２の戦力数を０ | F2: =(0.75*(F8*B2*F3+G8*C2*G3)) -> 4.66128
A3: モラル値 | B3: 16 | C3: 15 | F3: =IF(B7>10,10,B7) -> 9 | G3: =IF(C7>10,10,C7) -> 10 | H3: 移動力補正（１０以下）
A4: 50%以上戦力損失 | B4: 0 | C4: 0 | D4: 損失ありなら１、その他は０ | F4: =IF(B4=1,-6,0) -> 0 | G4: =IF(C4=1,-6,0) -> 0
A5: 指揮官修正（騎兵値） | B5: 0 | C5: 0 | F5: 乱数３＝ | G5: =ROUNDDOWN(RANDBETWEEN(100,699)/100,0)+ROUNDDOWN(RANDBETWEEN(100,699)/100,0) -> 7 | H5: ：サーベル命中用（２〜１２）
A6: 特別ボーナス | B6: 0 | C6: 0 | D6: ヴィストラ槍騎兵は１２、ポーランド槍騎兵は６、その他は０ | F6: =G5 -> 7 | G6: =F6 -> 7 | H6: ２つダイス値の合計
A7: 移動力の残数 | B7: 9 | C7: 10 | D7: 突撃時は５加算（但し、MAX10) | F7: =ROUNDDOWN(B3/10,0)*6+(B3-ROUNDDOWN(B3/10,0)*10) -> 12 | G7: =ROUNDDOWN(C3/10,0)*6+(C3-ROUNDDOWN(C3/10,0)*10) -> 11
A8: 追撃戦果(step数） | B8: 6 | D8: 判定後は色が変わる | F8: =(F6+(18-F7+F4)/3+B5+B6)/100*$F9 -> 0.03888 | G8: =(G6+(18-G7+G4)/3+C5+C6)/100*$F9 -> 0.04032 | H8: Hitする確率
F9: 0.432 | H9: 調整パラメータ
F12: 騎兵の速度を約12km/hとして、1HEX(100m)を通過する時間は30秒。
F13: １０分間（１ターンの１／２で自軍の割合）の平均で考えて、30秒でサーベルを振れる回数は、約１〜２回。
F14: Hitする確率をＮとして、１．５×Ｎが１人１ＨＥＸでの成果。
F15: 騎兵は歩兵に比べて1/2の人数で１戦力なので、１．５Ｎ×戦力数÷２が１HEX当たり歩兵に与える損失。
F16: 移動できるＨＥＸ数を掛けて０．７５Ｎ×戦力数×移動力残数が歩兵に与える合計損失。
F17: Hitする確率をＮは、ダイスの目、モラル値、指揮官修正、特別ボーナスを考えて、以下とする。
F18: Ｎ＝（ダイスの目＋（１８ーモラル値）÷３＋指揮官修正＋特別ボーナス）÷１００×α
F20: α＝調整パラメータで、下記を参考し決定。
F21: Albuera
F22: 1st Vistula Lancer | H22: morale=14, strength=12
F23: 2nd Hussar | H23: morale=15, strength=7
F24: が英国大隊約1300名を５分間で損失させた。
F25: 10HEX移動には5分間必要（12km/hの速度で）。

Sheet 士気
K1: 作業領域
F2: 判定後は色が変わる | K2: 5 | L2: 5 | M2: データ数
K3: 1 | L3: 1 | M3: 部隊数
A4: フランス軍 | F4: 連合軍
A5: 部隊名称 | B5: 離脱大隊数 | C5: 士気レベル | D5: 部隊モラル | F5: 部隊名称 | G5: =B5 -> 離脱大隊数 | H5: 士気レベル | I5: 部隊モラル
A6: ポーランド軍 | F6: オーストリア軍

Sheet 部隊モラル表
A1: フランス軍 | B1: ラシン用（自家製） | F1: 連合軍
A2: 部隊名称 | B2: 離脱大隊数 | C2: 士気レベル | D2: 部隊モラル | F2: =A2 -> 部隊名称 | G2: =B2 -> 離脱大隊数 | H2: 士気レベル | I2: 部隊モラル
A3: ポーランド軍 | B3: 3 | C3: 1 | D3: -3 | F3: オーストリア軍 | G3: 5 | H3: 1 | I3: -3
A4: ポーランド軍 | B4: 6 | C4: 2 | D4: -6 | F4: オーストリア軍 | G4: 10 | H4: 2 | I4: -6
A5: ポーランド軍 | B5: 9 | C5: 3 | D5: -12 | F5: オーストリア軍 | G5: 14 | H5: 3 | I5: -12

Sheet 時刻変化
B1: 時 | C1: 分 | D1: 時間帯 | E1: 天候 | G1: 現在時刻 | H1: 時 | I1: 分 | J1: 時間帯 | K1: 天候 | L1: 天候文字 | M1: 天候数値 | O1: 標準 | P1: albuera | Q1: Eylau | R1: Ligny | S1: Vauchamps
A2: =B2*100+C2 -> 0 | B2: 0 | C2: 0 | D2: 夜 | E2: 晴 | G2: =H2*100+I2 -> 820 | H2: 8 | I2: 20 | J2: =LOOKUP(G2,A2:A73,D2:D73) -> 昼 | K2: =LOOKUP(G2,A2:A73,E2:E73) -> 晴 | L2: =MID(K2,1,2) -> 晴 | M2: =MID(K2,3,1) ->  | O2: 晴 | P2: 晴 | Q2: 晴 | R2: 晴 | S2: 晴
A3: =B3*100+C3 -> 20 | B3: 0 | C3: 20 | D3: 夜 | E3: 晴 | O3: 晴 | P3: 晴 | Q3: 晴 | R3: 晴 | S3: 晴
A4: 40 | B4: 0 | C4: 40 | D4: 夜 | E4: 晴 | O4: 晴 | P4: 晴 | Q4: 晴 | R4: 晴 | S4: 晴
A5: 100 | B5: 1 | C5: 0 | D5: 夜 | E5: 晴 | O5: 晴 | P5: 晴 | Q5: 晴 | R5: 晴 | S5: 晴
A6: 120 | B6: 1 | C6: 20 | D6: 夜 | E6: 晴 | O6: 晴 | P6: 晴 | Q6: 晴 | R6: 晴 | S6: 晴
A7: 140 | B7: 1 | C7: 40 | D7: 夜 | E7: 晴 | O7: 晴 | P7: 晴 | Q7: 晴 | R7: 晴 | S7: 晴
A8: 200 | B8: 2 | C8: 0 | D8: 夜 | E8: 晴 | O8: 晴 | P8: 晴 | Q8: 晴 | R8: 晴 | S8: 晴
A9: 220 | B9: 2 | C9: 20 | D9: 夜 | E9: 晴 | O9: 晴 | P9: 晴 | Q9: 晴 | R9: 晴 | S9: 晴
A10: 240 | B10: 2 | C10: 40 | D10: 夜 | E10: 晴 | O10: 晴 | P10: 晴 | Q10: 晴 | R10: 晴 | S10: 晴
A11: 300 | B11: 3 | C11: 0 | D11: 夜 | E11: 晴 | O11: 晴 | P11: 晴 | Q11: 晴 | R11: 晴 | S11: 晴
A12: 320 | B12: 3 | C12: 20 | D12: 夜 | E12: 晴 | O12: 晴 | P12: 晴 | Q12: 晴 | R12: 晴 | S12: 晴
A13: 340 | B13: 3 | C13: 40 | D13: 夜 | E13: 晴 | O13: 晴 | P13: 晴 | Q13: 晴 | R13: 晴 | S13: 晴
A14: 400 | B14: 4 | C14: 0 | D14: 夜 | E14: 晴 | O14: 晴 | P14: 晴 | Q14: 晴 | R14: 晴 | S14: 晴
A15: 420 | B15: 4 | C15: 20 | D15: 夜 | E15: 晴 | O15: 晴 | P15: 晴 | Q15: 晴 | R15: 晴 | S15: 晴
A16: 440 | B16: 4 | C16: 40 | D16: 夜 | E16: 晴 | O16: 晴 | P16: 晴 | Q16: 晴 | R16: 晴 | S16: 晴
A17: 500 | B17: 5 | C17: 0 | D17: 日出前 | E17: 晴 | O17: 晴 | P17: 晴 | Q17: 晴 | R17: 晴 | S17: 晴
A18: 520 | B18: 5 | C18: 20 | D18: 日出前 | E18: 晴 | O18: 晴 | P18: 晴 | Q18: 晴 | R18: 晴 | S18: 晴
A19: 540 | B19: 5 | C19: 40 | D19: 日出前 | E19: 晴 | O19: 晴 | P19: 晴 | Q19: 晴 | R19: 晴 | S19: 晴
A20: 600 | B20: 6 | C20: 0 | D20: 日出前 | E20: 晴 | O20: 晴 | P20: 晴 | Q20: 晴 | R20: 晴 | S20: 晴
A21: 620 | B21: 6 | C21: 20 | D21: 昼 | E21: 晴 | O21: 晴 | P21: 晴 | Q21: 晴 | R21: 晴 | S21: 晴
A22: 640 | B22: 6 | C22: 40 | D22: 昼 | E22: 晴 | O22: 晴 | P22: 晴 | Q22: 晴 | R22: 晴 | S22: 晴
A23: 700 | B23: 7 | C23: 0 | D23: 昼 | E23: 晴 | O23: 晴 | P23: 晴 | Q23: 晴 | R23: 晴 | S23: 晴
A24: 720 | B24: 7 | C24: 20 | D24: 昼 | E24: 晴 | O24: 晴 | P24: 晴 | Q24: 晴 | R24: 晴 | S24: 晴
A25: 740 | B25: 7 | C25: 40 | D25: 昼 | E25: 晴 | O25: 晴 | P25: 晴 | Q25: 可変5 | R25: 晴 | S25: 晴
A26: 800 | B26: 8 | C26: 0 | D26: 昼 | E26: 晴 | O26: 晴 | P26: 晴 | Q26: 可変5 | R26: 晴 | S26: 晴
A27: 820 | B27: 8 | C27: 20 | D27: 昼 | E27: 晴 | O27: 晴 | P27: 晴 | Q27: 可変5 | R27: 晴 | S27: 晴
A28: 840 | B28: 8 | C28: 40 | D28: 昼 | E28: 晴 | O28: 晴 | P28: 可変1 | Q28: 可変5 | R28: 晴 | S28: 晴
A29: 900 | B29: 9 | C29: 0 | D29: 昼 | E29: 晴 | O29: 晴 | P29: 可変1 | Q29: 可変5 | R29: 晴 | S29: 可変7
A30: 920 | B30: 9 | C30: 20 | D30: 昼 | E30: 晴 | O30: 晴 | P30: 可変1 | Q30: 可変5 | R30: 晴 | S30: 可変7
A31: 940 | B31: 9 | C31: 40 | D31: 昼 | E31: 晴 | O31: 晴 | P31: 可変1 | Q31: 可変5 | R31: 晴 | S31: 可変7
A32: 1000 | B32: 10 | C32: 0 | D32: 昼 | E32: 晴 | O32: 晴 | P32: 可変2 | Q32: 可変5 | R32: 晴 | S32: 可変7
A33: 1020 | B33: 10 | C33: 20 | D33: 昼 | E33: 晴 | O33: 晴 | P33: 可変2 | Q33: 可変5 | R33: 晴 | S33: 可変7
A34: 1040 | B34: 10 | C34: 40 | D34: 昼 | E34: 晴 | O34: 晴 | P34: 可変2 | Q34: 可変5 | R34: 晴 | S34: 可変7
A35: 1100 | B35: 11 | C35: 0 | D35: 昼 | E35: 晴 | O35: 晴 | P35: 可変2 | Q35: 可変5 | R35: 晴 | S35: 可変7
A36: 1120 | B36: 11 | C36: 20 | D36: 昼 | E36: 晴 | O36: 晴 | P36: 可変2 | Q36: 可変5 | R36: 晴 | S36: 可変8
A37: 1140 | B37: 11 | C37: 40 | D37: 昼 | E37: 晴 | O37: 晴 | P37: 可変2 | Q37: 可変5 | R37: 晴 | S37: 可変8
A38: 1200 | B38: 12 | C38: 0 | D38: 昼 | E38: 晴 | O38: 晴 | P38: 可変3 | Q38: 可変5 | R38: 晴 | S38: 可変8
A39: 1220 | B39: 12 | C39: 20 | D39: 昼 | E39: 晴 | O39: 晴 | P39: 可変3 | Q39: 可変5 | R39: 晴 | S39: 可変8
A40: 1240 | B40: 12 | C40: 40 | D40: 昼 | E40: 晴 | O40: 晴 | P40: 可変3 | Q40: 可変5 | R40: 晴 | S40: 可変8
A41: 1300 | B41: 13 | C41: 0 | D41: 昼 | E41: 晴 | O41: 晴 | P41: 可変3 | Q41: 可変5 | R41: 晴 | S41: 可変8
A42: 1320 | B42: 13 | C42: 20 | D42: 昼 | E42: 晴 | O42: 晴 | P42: 可変3 | Q42: 可変5 | R42: 晴 | S42: 可変8
A43: 1340 | B43: 13 | C43: 40 | D43: 昼 | E43: 晴 | O43: 晴 | P43: 可変3 | Q43: 可変5 | R43: 晴 | S43: 可変8
A44: 1400 | B44: 14 | C44: 0 | D44: 昼 | E44: 晴 | O44: 晴 | P44: 可変4 | Q44: 可変5 | R44: 晴 | S44: 可変8
A45: 1420 | B45: 14 | C45: 20 | D45: 昼 | E45: 晴 | O45: 晴 | P45: 可変4 | Q45: 可変5 | R45: 晴 | S45: 可変8
A46: 1440 | B46: 14 | C46: 40 | D46: 昼 | E46: 晴 | O46: 晴 | P46: 可変4 | Q46: 可変5 | R46: 晴 | S46: 可変8
A47: 1500 | B47: 15 | C47: 0 | D47: 昼 | E47: 晴 | O47: 晴 | P47: 可変4 | Q47: 可変5 | R47: 可変6 | S47: 可変8
A48: 1520 | B48: 15 | C48: 20 | D48: 昼 | E48: 晴 | O48: 晴 | P48: 可変4 | Q48: 可変5 | R48: 可変6 | S48: 可変8
A49: 1540 | B49: 15 | C49: 40 | D49: 昼 | E49: 晴 | O49: 晴 | P49: 晴 | Q49: 可変5 | R49: 可変6 | S49: 可変8
A50: 1600 | B50: 16 | C50: 0 | D50: 昼 | E50: 晴 | O50: 晴 | P50: 晴 | Q50: 可変5 | R50: 可変6 | S50: 晴
A51: 1620 | B51: 16 | C51: 20 | D51: 昼 | E51: 晴 | O51: 晴 | P51: 晴 | Q51: 可変5 | R51: 可変6 | S51: 晴
A52: 1640 | B52: 16 | C52: 40 | D52: 昼 | E52: 晴 | O52: 晴 | P52: 晴 | Q52: 可変5 | R52: 可変6 | S52: 晴
A53: 1700 | B53: 17 | C53: 0 | D53: 昼 | E53: 晴 | O53: 晴 | P53: 晴 | Q53: 可変5 | R53: 可変6 | S53: 晴
A54: 1720 | B54: 17 | C54: 20 | D54: 昼 | E54: 晴 | O54: 晴 | P54: 晴 | Q54: 可変5 | R54: 可変6 | S54: 晴
A55: 1740 | B55: 17 | C55: 40 | D55: 昼 | E55: 晴 | O55: 晴 | P55: 晴 | Q55: 可変5 | R55: 可変6 | S55: 晴
A56: 1800 | B56: 18 | C56: 0 | D56: 昼 | E56: 晴 | O56: 晴 | P56: 晴 | Q56: 可変5 | R56: 可変6 | S56: 晴
A57: 1820 | B57: 18 | C57: 20 | D57: 昼 | E57: 晴 | O57: 晴 | P57: 晴 | Q57: 可変5 | R57: 可変6 | S57: 晴
A58: 1840 | B58: 18 | C58: 40 | D58: 昼 | E58: 晴 | O58: 晴 | P58: 晴 | Q58: 可変5 | R58: 可変6 | S58: 晴
A59: 1900 | B59: 19 | C59: 0 | D59: 昼 | E59: 晴 | O59: 晴 | P59: 晴 | Q59: 可変5 | R59: 可変6 | S59: 晴
A60: 1920 | B60: 19 | C60: 20 | D60: 昼 | E60: 晴 | O60: 晴 | P60: 晴 | Q60: 可変5 | R60: 可変6 | S60: 晴
A61: 1940 | B61: 19 | C61: 40 | D61: 日没後 | E61: 晴 | O61: 晴 | P61: 晴 | Q61: 可変5 | R61: 可変6 | S61: 晴
A62: 2000 | B62: 20 | C62: 0 | D62: 日没後 | E62: 晴 | O62: 晴 | P62: 晴 | Q62: 可変5 | R62: 可変6 | S62: 晴
A63: 2020 | B63: 20 | C63: 20 | D63: 日没後 | E63: 晴 | O63: 晴 | P63: 晴 | Q63: 晴 | R63: 可変6 | S63: 晴
A64: 2040 | B64: 20 | C64: 40 | D64: 夜 | E64: 晴 | O64: 晴 | P64: 晴 | Q64: 晴 | R64: 可変6 | S64: 晴
A65: 2100 | B65: 21 | C65: 0 | D65: 夜 | E65: 晴 | O65: 晴 | P65: 晴 | Q65: 晴 | R65: 可変6 | S65: 晴
A66: 2120 | B66: 21 | C66: 20 | D66: 夜 | E66: 晴 | O66: 晴 | P66: 晴 | Q66: 晴 | R66: 可変6 | S66: 晴
A67: =B67*100+C67 -> 2140 | B67: 21 | C67: 40 | D67: 夜 | E67: 晴 | O67: 晴 | P67: 晴 | Q67: 晴 | R67: 可変6 | S67: 晴
A68: 2200 | B68: 22 | C68: 0 | D68: 夜 | E68: 晴 | O68: 晴 | P68: 晴 | Q68: 晴 | R68: 可変6 | S68: 晴
A69: 2220 | B69: 22 | C69: 20 | D69: 夜 | E69: 晴 | O69: 晴 | P69: 晴 | Q69: 晴 | R69: 可変6 | S69: 晴
A70: 2240 | B70: 22 | C70: 40 | D70: 夜 | E70: 晴 | O70: 晴 | P70: 晴 | Q70: 晴 | R70: 晴 | S70: 晴
A71: 2300 | B71: 23 | C71: 0 | D71: 夜 | E71: 晴 | O71: 晴 | P71: 晴 | Q71: 晴 | R71: 晴 | S71: 晴
A72: 2320 | B72: 23 | C72: 20 | D72: 夜 | E72: 晴 | O72: 晴 | P72: 晴 | Q72: 晴 | R72: 晴 | S72: 晴
A73: 2340 | B73: 23 | C73: 40 | D73: 夜 | E73: 晴 | O73: 晴 | P73: 晴 | Q73: 晴 | R73: 晴 | S73: 晴

Sheet 天候変化
B1: 賽の目min | C1: 天候 | H1: 対象ゲーム | I1: 天候結果 | J1: 天候数値 | K1: 乱数 | L1: 検索キー | N1: 歩兵 | O1: 騎兵 | P1: 砲兵
A2: 可変1 | B2: 11 | C2: 晴 | D2: =VALUE(MID(B2,1,1)) -> 1 | E2: =VALUE(MID(B2,2,1)) -> 1 | F2: =(D2-1)*6+E2 -> 1 | G2: =F2+100*VALUE(MID(A2,3,1)) -> 101 | H2: Albuera | I2: =LOOKUP(L2,G2:G27,C2:C34) ->  | K2: =(ROUNDDOWN(RANDBETWEEN(100,699)/100,0)-1)*6+ROUNDDOWN(RANDBETWEEN(100,699)/100,0) -> 1 | L2: =J2*100+K2 -> 1 | N2: =IF($J$2=7,N48,N59) -> 0 | O2: =IF($J$2=7,O48,O59) -> -7 | P2: -15
A3: 可変1 | B3: 22 | C3: 小雨 | D3: =VALUE(MID(B3,1,1)) -> 2 | E3: =VALUE(MID(B3,2,1)) -> 2 | F3: 8 | G3: =F3+100*VALUE(MID(A3,3,1)) -> 108 | H3: Albuera | I3: ↑ *1*2
A4: 可変1 | B4: 51 | C4: 霧 | D4: 5 | E4: 1 | F4: 25 | G4: 125 | H4: Albuera | J4: 濃淡霧の視程 | K4: 時刻（時） | L4: LOSのmax | N4: *1 マクロが動作すると、再度乱数が発生する。
A5: 可変1 | B5: 62 | C5: 雨 | D5: 6 | E5: 2 | F5: 32 | G5: 132 | H5: Albuera | J5: 現在 | K5: =時刻変化!H2 -> 8 | L5: =LOOKUP(K5,K11:K17,L11:L17) -> 3 | N5: *2 その為、再検索した結果が上書されて、時間
A6: 可変1 | B6: 66 | C6: 激しい雨 | D6: 6 | E6: 6 | F6: =(D6-1)*6+E6 -> 36 | G6: 136 | H6: Albuera | J6: 条件 | K6: 0 | L6: 99 | N6: シートの天候と違う表示になる。この内容は
A7: 可変2 | B7: 11 | C7: 晴 | D7: 1 | E7: 1 | F7: =(D7-1)*6+E7 -> 1 | G7: 201 | H7: Albuera | K7: 1 | L7: 99 | N7: 使われないので、問題はない。
A8: 可変2 | B8: 21 | C8: 小雨 | D8: 2 | E8: 1 | F8: 7 | G8: 207 | H8: Albuera | K8: 2 | L8: 99
A9: 可変2 | B9: 34 | C9: 霧 | D9: 3 | E9: 4 | F9: 16 | G9: 216 | H9: Albuera | K9: 3 | L9: 99
A10: 可変2 | B10: 51 | C10: 雨 | D10: 5 | E10: 1 | F10: 25 | G10: 225 | H10: Albuera | K10: 4 | L10: 99 | N10: 雪の補正
A11: 可変2 | B11: 65 | C11: 激しい雨 | D11: 6 | E11: 5 | F11: 35 | G11: 235 | H11: Albuera | K11: 5 | L11: 99 | N11: 前回値 | O11: 乱数 | P11: 補正値 | Q11: 天候結果
A12: 可変3 | B12: 11 | C12: 晴 | D12: 1 | E12: 1 | F12: 1 | G12: 301 | H12: Albuera | K12: 6 | L12: 99 | N12: 1 | O12: =ROUNDDOWN(RANDBETWEEN(100,699)/100,0) -> 6 | P12: 1 | Q12: 晴
A13: 可変3 | B13: 14 | C13: 小雨 | D13: 1 | E13: 4 | F13: 4 | G13: 304 | H13: Albuera | K13: 7 | L13: =ROUNDDOWN(RANDBETWEEN(100,699)/100,0)+1 -> 5 | M13: Auerstat | O13: *1
A14: 可変3 | B14: 22 | C14: 霧 | D14: 2 | E14: 2 | F14: 8 | G14: 308 | H14: Albuera | K14: 8 | L14: =ROUNDDOWN(RANDBETWEEN(100,699)/100,0)+2 -> 3 | M14: Auerstat
A15: 可変3 | B15: 34 | C15: 雨 | D15: 3 | E15: 4 | F15: 16 | G15: 316 | H15: Albuera | K15: 9 | L15: =ROUNDDOWN(RANDBETWEEN(100,699)/100,0)+3 -> 8 | M15: Auerstat
A16: 可変3 | B16: 45 | C16: 激しい雨 | D16: 4 | E16: 5 | F16: 23 | G16: 323 | H16: Albuera | K16: 10 | L16: 99
A17: 可変4 | B17: 11 | C17: 晴 | D17: 1 | E17: 1 | F17: 1 | G17: 401 | H17: Albuera | K17: 11 | L17: 99
A18: 可変4 | B18: 34 | C18: 小雨 | D18: 3 | E18: 4 | F18: 16 | G18: 416 | H18: Albuera | K18: 12 | L18: 99
A19: 可変4 | B19: 51 | C19: 霧 | D19: 5 | E19: 1 | F19: 25 | G19: 425 | H19: Albuera | K19: 13 | L19: 99
A20: 可変4 | B20: 64 | C20: 雨 | D20: 6 | E20: 4 | F20: 34 | G20: 434 | H20: Albuera | K20: 14 | L20: 99
A21: 可変4 | B21: 66 | C21: 激しい雨 | D21: 6 | E21: 6 | F21: 36 | G21: 436 | H21: Albuera | K21: 15 | L21: 99
A22: 可変5 | B22: 11 | C22: 晴 | D22: =VALUE(MID(B22,1,1)) -> 1 | E22: =VALUE(MID(B22,2,1)) -> 1 | F22: =(D22-1)*6+E22 -> 1 | G22: =F22+100*VALUE(MID(A22,3,1)) -> 501 | H22: Eylau | K22: 16 | L22: 99
A23: 可変5 | B23: 31 | C23: 雪 | D23: 3 | E23: 1 | F23: 13 | G23: 513 | H23: Eylau | K23: 17 | L23: 99
A24: 可変5 | B24: 61 | C24: 吹雪 | D24: 6 | E24: 1 | F24: 31 | G24: 531 | H24: Eylau | K24: 18 | L24: 99
A25: 可変6 | B25: 11 | C25: 雷雨 | D25: =VALUE(MID(B25,1,1)) -> 1 | E25: =VALUE(MID(B25,2,1)) -> 1 | F25: =(D25-1)*6+E25 -> 1 | G25: =F25+100*VALUE(MID(A25,3,1)) -> 601 | H25: Ligny | K25: 19 | L25: 99
A26: 可変6 | B26: 15 | C26: 晴 | D26: 1 | E26: 5 | F26: 5 | G26: 605 | H26: Ligny | K26: 20 | L26: 99
A27: 可変7 | B27: 11 | C27: 泥濘 | D27: =VALUE(MID(B27,1,1)) -> 1 | E27: =VALUE(MID(B27,2,1)) -> 1 | F27: =(D27-1)*6+E27 -> 1 | G27: =F27+100*VALUE(MID(A27,3,1)) -> 701 | H27: Vauchamps | K27: 21 | L27: 99
A28: 可変7 | B28: 66 | C28: 泥濘 | D28: 6 | E28: 6 | F28: 36 | G28: 736 | H28: Vauchamps | K28: 22 | L28: 99
A29: 可変8 | B29: 11 | C29: 泥濘 | D29: 1 | E29: 1 | F29: 1 | G29: 801 | H29: Vauchamps | K29: 23 | L29: 99
A30: 可変8 | B30: 66 | C30: 泥濘 | D30: 6 | E30: 6 | F30: 36 | G30: 836 | H30: Vauchamps
A31: 可変9 | B31: 11 | C31: 要調整！ | D31: 1 | E31: 1 | F31: 1 | G31: 901 | J31: 雷雨の場所 | K31: 乱数 | L31: =(ROUNDDOWN(RANDBETWEEN(100,699)/100,0)-1)*6+ROUNDDOWN(RANDBETWEEN(100,699)/100,0) -> 3 | M31: 発生箇所 | N31: =LOOKUP(L31,N33:N44,K33:K44) -> QB
J32: 賽の目min | K32: 箇所
J33: 11 | K33: QB | L33: =VALUE(MID(J33,1,1)) -> 1 | M33: =VALUE(MID(J33,2,1)) -> 1 | N33: =(L33-1)*6+M33 -> 1 | O33: Ligny
J34: 14 | K34: NE | L34: =VALUE(MID(J34,1,1)) -> 1 | M34: =VALUE(MID(J34,2,1)) -> 4 | N34: =(L34-1)*6+M34 -> 4 | O34: Ligny
J35: 23 | K35: SE | L35: 2 | M35: 3 | N35: 9 | O35: Ligny
J36: 32 | K36: SW | L36: 3 | M36: 2 | N36: 14 | O36: Ligny
J37: 41 | K37: NW | L37: 4 | M37: 1 | N37: 19 | O37: Ligny
J38: 46 | K38: QB+NW | L38: 4 | M38: 6 | N38: 24 | O38: Ligny
J39: 51 | K39: NE+SE | L39: 5 | M39: 1 | N39: 25 | O39: Ligny
J40: 54 | K40: SE+SW | L40: 5 | M40: 4 | N40: 28 | O40: Ligny
J41: 61 | K41: SW+NW | L41: 6 | M41: 1 | N41: 31 | O41: Ligny
J42: 63 | K42: SW+NW+QB | L42: 6 | M42: 3 | N42: 33 | O42: Ligny
J43: 64 | K43: NW+NE | L43: 6 | M43: 4 | N43: 34 | O43: Ligny
J44: 66 | K44: NW+NE+QB | L44: 6 | M44: 6 | N44: 36 | O44: Ligny
J46: 泥濘の移動低下1
J47: Vauchamps 0900-1100
J48: 乱数 | K48: =(ROUNDDOWN(RANDBETWEEN(100,699)/100,0)-1)*6+ROUNDDOWN(RANDBETWEEN(100,699)/100,0) -> 15 | M48: 該当 | N48: =LOOKUP(K48,M50:M56,N50:N56) -> -15 | O48: =LOOKUP(K48,M50:M56,O50:O56) -> -14 | P48: =LOOKUP(K48,M50:M56,P50:P56) -> -15
J49: 賽の目min | N49: 歩兵 | O49: 騎兵 | P49: 砲兵
J50: 11 | K50: =VALUE(MID(J50,1,1)) -> 1 | L50: =VALUE(MID(J50,2,1)) -> 1 | M50: =(K50-1)*6+L50 -> 1 | N50: 0 | O50: 0 | P50: 0
J51: 21 | K51: 2 | L51: 1 | M51: =(K51-1)*6+L51 -> 7 | N51: 0 | O51: -7 | P51: -15
J52: 31 | K52: 3 | L52: 1 | M52: 13 | N52: -15 | O52: -14 | P52: -15
J53: 41 | K53: 4 | L53: 1 | M53: 19 | N53: -15 | O53: -21 | P53: -30
J54: 51 | K54: 5 | L54: 1 | M54: 25 | N54: -30 | O54: -28 | P54: -30
J55: 61 | K55: 6 | L55: 1 | M55: 31 | N55: -30 | O55: -36 | P55: -50
J56: 66 | K56: 6 | L56: 6 | M56: 36 | N56: -30 | O56: -36 | P56: -50
J57: 泥濘の移動低下2
J58: Vauchamps 1120-
J59: 乱数 | K59: =(ROUNDDOWN(RANDBETWEEN(100,699)/100,0)-1)*6+ROUNDDOWN(RANDBETWEEN(100,699)/100,0) -> 4 | M59: 該当 | N59: =LOOKUP(K59,M61:M67,N61:N67) -> 0 | O59: =LOOKUP(K59,M61:M67,O61:O67) -> -7 | P59: =LOOKUP(K59,M61:M67,P61:P67) -> -15
J60: 賽の目min | N60: 歩兵 | O60: 騎兵 | P60: 砲兵
J61: 11 | K61: =VALUE(MID(J61,1,1)) -> 1 | L61: =VALUE(MID(J61,2,1)) -> 1 | M61: =(K61-1)*6+L61 -> 1 | N61: 0 | O61: -7 | P61: -15
J62: 21 | K62: 2 | L62: 1 | M62: 7 | N62: -15 | O62: -14 | P62: -15
J63: 31 | K63: 3 | L63: 1 | M63: 13 | N63: -15 | O63: -21 | P63: -30
J64: 41 | K64: 4 | L64: 1 | M64: 19 | N64: -30 | O64: -28 | P64: -50
J65: 51 | K65: 5 | L65: 1 | M65: 25 | N65: -30 | O65: -36 | P65: -60
J66: 61 | K66: 6 | L66: 1 | M66: 31 | N66: -50 | O66: -43 | P66: -76
J67: 66 | K67: 6 | L67: 6 | M67: 36 | N67: -50 | O67: -43 | P67: -76

Sheet 天候
B1: 日出前 | C1: 昼 | D1: 日没後 | E1: 夜 | G1: 晴 | H1: 霧 | I1: 小雨 | J1: 雨 | K1: 激しい雨 | L1: 雪 | M1: 吹雪 | N1: 濃淡霧 | O1: 雷雨 | P1: 豪雨の後 | Q1: 泥濘
B2: 1 | C2: 2 | D2: 3 | E2: 4 | G2: 1 | H2: 2 | I2: 3 | J2: 4 | K2: 5 | L2: 6 | M2: 7 | N2: 8 | O2: 9 | P2: 10 | Q2: 11
A3: LOSの最大HEX | B3: 3 | C3: 99 | D3: 3 | E3: 2 | G3: 99 | H3: 4 | I3: 10 | J3: 6 | K3: 1 | L3: 6 | M3: 1 | N3: 89 | O3: 5 | P3: 99 | Q3: 99
A4: 散開隊形の射撃射程HEX | B4: 2 | C4: 2 | D4: 2 | E4: 1 | G4: 2 | H4: 2 | I4: 2 | J4: 2 | K4: 0 | L4: 2 | M4: 0 | N4: 2 | O4: 0 | P4: 0 | Q4: 2
A5: 騎兵突撃 | B5: 0 | C5: 0 | D5: 0 | E5: 0 | G5: 0 | H5: 0 | I5: 0 | J5: 0 | K5: -99 | L5: 0 | M5: -99 | N5: 0 | O5: 0 | P5: 0 | Q5: 0
A6: 騎兵突撃のボーナス | B6: 5 | C6: 5 | D6: 5 | E6: 0 | G6: 5 | H6: 0 | I6: 5 | J6: 0 | K6: 0 | L6: 0 | M6: 0 | N6: 0 | O6: 0 | P6: 0 | Q6: 0
A7: 歩兵射撃の可否 補正(%) | B7: 0 | C7: 0 | D7: 0 | E7: -33 | G7: 0 | H7: 0 | I7: -33 | J7: -50 | K7: -99 | L7: -50 | M7: -99 | N7: 0 | O7: -50 | P7: -99 | Q7: 0
A8: 砲兵射撃の可否 補正(%) | B8: -33 | C8: 0 | D8: -33 | E8: -50 | G8: 0 | H8: 0 | I8: 0 | J8: 0 | K8: -99 | L8: 0 | M8: -99 | N8: 0 | O8: 0 | P8: 0 | Q8: 0
A9: 歩兵移動力補正(%) | B9: 0 | C9: 0 | D9: 0 | E9: -50 | G9: 0 | H9: -10 | I9: -10 | J9: -33 | K9: -70 | L9: -40 | M9: -80 | N9: -10 | O9: -50 | P9: 0 | Q9: 79
A10: 騎兵移動力補正(%) | B10: 0 | C10: 0 | D10: 0 | E10: -50 | G10: 0 | H10: -20 | I10: -10 | J10: -33 | K10: -70 | L10: -40 | M10: -80 | N10: -20 | O10: -50 | P10: 0 | Q10: 79
A11: 砲兵移動力補正(%) | B11: 0 | C11: 0 | D11: 0 | E11: -50 | G11: 0 | H11: -15 | I11: -10 | J11: -33 | K11: -70 | L11: -40 | M11: -80 | N11: -15 | O11: -50 | P11: -50 | Q11: 79
F12: 検討用
F13: 元の移動力 | G13: =G1 -> 晴 | H13: =H1 -> 霧 | I13: 小雨 | J13: 雨 | K13: 激しい雨 | L13: 雪 | M13: 吹雪 | N13: 濃淡霧 | O13: =O1 -> 雷雨 | P13: 豪雨の後 | Q13: 泥濘
A14: =時間!A7 -> 時間帯 | B14: =時間!A8 -> 昼 | C14: =IF(B14=B1,1,IF(B14=C1,2,IF(B14=D1,3,4))) -> 2 | F14: 4 | G14: =$F14+$F14*G$9/100 -> 4 | H14: 3.6 | I14: 3.6 | J14: 2.68 | K14: 1.2 | L14: 2.4 | M14: 0.8 | N14: 3.6 | O14: 2 | P14: 4 | Q14: 7.16
A15: =時間!B7 -> 天候 | B15: =時間!B8 -> 晴 | C15: =INDEX(G1:Q2,2,MATCH(B15,G1:Q1,0)) -> 1 | F15: 6 | G15: 6 | H15: 5.4 | I15: 5.4 | J15: 4.02 | K15: 1.8 | L15: 3.6 | M15: 1.2 | N15: 5.4 | O15: 3 | P15: 6 | Q15: 10.74
F16: 9 | G16: =$F16+$F16*G$10/100 -> 9 | H16: =$F16+$F16*H$10/100 -> 7.2 | I16: 8.1 | J16: 6.03 | K16: 2.7 | L16: 5.4 | M16: 1.8 | N16: 7.2 | O16: 4.5 | P16: 9 | Q16: 16.11
F17: 11 | G17: =$F17+$F17*G$10/100 -> 11 | H17: 8.8 | I17: 9.9 | J17: 7.37 | K17: 3.3 | L17: 6.6 | M17: 2.2 | N17: 8.8 | O17: 5.5 | P17: 11 | Q17: 19.69
F18: 15 | G18: 15 | H18: 12 | I18: 13.5 | J18: 10.05 | K18: 4.5 | L18: 9 | M18: 3 | N18: 12 | O18: 7.5 | P18: 15 | Q18: 26.85
B19: =A14 -> 時間帯 | C19: =A15 -> 天候 | D19: 可変 | E19: 比較 | F19: 変換
A20: =A3 -> LOSの最大HEX | B20: =HLOOKUP($C$14,$B$2:$E$11,2,TRUE) -> 99 | C20: =HLOOKUP($C$15,$G$2:$Q$11,2,TRUE) -> 99 | D20: =IF(C20=N3,天候変化!L5,C20) -> 99 | E20: =IF(B20<D20,B20,D20) -> 99 | F20: =IF(E20=99,"無限",E20) -> 無限
A21: 散開隊形の射撃射程HEX | B21: =HLOOKUP($C$14,$B$2:$E$11,3,TRUE) -> 2 | C21: =HLOOKUP($C$15,$G$2:$Q$11,3,TRUE) -> 2 | D21: =C21 -> 2 | E21: =IF(B21<D21,B21,D21) -> 2 | F21: =IF(E21=0,"射撃不可",E21) -> 2
A22: 騎兵突撃 | B22: =HLOOKUP($C$14,$B$2:$E$11,4,TRUE) -> 0 | C22: =HLOOKUP($C$15,$G$2:$Q$11,4,TRUE) -> 0 | D22: =C22 -> 0 | E22: 0 | F22: =IF(E22=-99,"禁止","可能") -> 可能
A23: 騎兵突撃のボーナス | B23: =HLOOKUP($C$14,$B$2:$E$11,5,TRUE) -> 5 | C23: =HLOOKUP($C$15,$G$2:$Q$11,5,TRUE) -> 5 | D23: 5 | E23: 5 | F23: =IF(E23=0,"なし","移動力＋５") -> 移動力＋５
A24: 歩兵射撃の可否 補正(%) | B24: =HLOOKUP($C$14,$B$2:$E$11,6,TRUE) -> 0 | C24: =HLOOKUP($C$15,$G$2:$Q$11,6,TRUE) -> 0 | D24: 0 | E24: 0 | F24: =IF(E24<=-99,"射撃不可",E24) -> 0
A25: 砲兵射撃の可否 補正(%) | B25: =HLOOKUP($C$14,$B$2:$E$11,7,TRUE) -> 0 | C25: =HLOOKUP($C$15,$G$2:$Q$11,7,TRUE) -> 0 | D25: 0 | E25: 0 | F25: =IF(E25<=-99,"射撃不可",E25) -> 0
A26: 歩兵移動力補正(%) | B26: =HLOOKUP($C$14,$B$2:$E$11,8,TRUE) -> 0 | C26: =HLOOKUP($C$15,$G$2:$Q$11,8,TRUE) -> 0 | D26: =IF(C26=79,天候変化!N2,C26) -> 0 | E26: 0 | F26: =E26 -> 0
A27: 騎兵移動力補正(%) | B27: =HLOOKUP($C$14,$B$2:$E$11,9,TRUE) -> 0 | C27: =HLOOKUP($C$15,$G$2:$Q$11,9,TRUE) -> 0 | D27: =IF(C27=79,天候変化!O2,C27) -> 0 | E27: 0 | F27: =E27 -> 0
A28: 砲兵移動力補正(%) | B28: =HLOOKUP($C$14,$B$2:$E$11,10,TRUE) -> 0 | C28: =HLOOKUP($C$15,$G$2:$Q$11,10,TRUE) -> 0 | D28: =IF(C28=79,天候変化!P2,C28) -> 0 | E28: =IF(B28<D28,B28,D28) -> 0 | F28: =E28 -> 0

Sheet 射撃結果表
A1: 0 | B1: 0 | C1: 0 | D1: 0 | E1: 0 | F1: 0 | G1: 0 | H1: 0 | I1: 0 | J1: 0 | K1: 1 | L1: 1 | M1: 1 | N1: 1 | O1: 2 | P1: 2
A2: 0 | B2: 0 | C2: 0 | D2: 0 | E2: 0 | F2: 0 | G2: 0 | H2: 0 | I2: 0 | J2: 0 | K2: 1 | L2: 1 | M2: 1 | N2: 1 | O2: 2 | P2: 2
A3: 0 | B3: 0 | C3: 0 | D3: 0 | E3: 0 | F3: 0 | G3: 0 | H3: 0 | I3: 0 | J3: 1 | K3: 1 | L3: 1 | M3: 1 | N3: 1 | O3: 2 | P3: 2
A4: 0 | B4: 0 | C4: 0 | D4: 0 | E4: 0 | F4: 0 | G4: 0 | H4: 0 | I4: 0 | J4: 1 | K4: 1 | L4: 1 | M4: 1 | N4: 1 | O4: 2 | P4: 2
A5: 0 | B5: 0 | C5: 0 | D5: 0 | E5: 0 | F5: 0 | G5: 0 | H5: 0 | I5: 0 | J5: 1 | K5: 1 | L5: 1 | M5: 1 | N5: 2 | O5: 2 | P5: 2
A6: 0 | B6: 0 | C6: 0 | D6: 0 | E6: 0 | F6: 0 | G6: 0 | H6: 0 | I6: 0 | J6: 1 | K6: 1 | L6: 1 | M6: 1 | N6: 2 | O6: 2 | P6: 2
A7: 0 | B7: 0 | C7: 0 | D7: 0 | E7: 0 | F7: 0 | G7: 0 | H7: 0 | I7: 0 | J7: 1 | K7: 1 | L7: 1 | M7: 1 | N7: 2 | O7: 2 | P7: 2
A8: 0 | B8: 0 | C8: 0 | D8: 0 | E8: 0 | F8: 0 | G8: 0 | H8: 0 | I8: 1 | J8: 1 | K8: 1 | L8: 1 | M8: 1 | N8: 2 | O8: 2 | P8: 2
A9: 0 | B9: 0 | C9: 0 | D9: 0 | E9: 0 | F9: 0 | G9: 0 | H9: 0 | I9: 1 | J9: 1 | K9: 1 | L9: 1 | M9: 2 | N9: 2 | O9: 2 | P9: 2
A10: 0 | B10: 0 | C10: 0 | D10: 0 | E10: 0 | F10: 0 | G10: 0 | H10: 0 | I10: 1 | J10: 1 | K10: 1 | L10: 1 | M10: 2 | N10: 2 | O10: 2 | P10: 2
A11: 0 | B11: 0 | C11: 0 | D11: 0 | E11: 0 | F11: 0 | G11: 0 | H11: 0 | I11: 1 | J11: 1 | K11: 1 | L11: 1 | M11: 2 | N11: 2 | O11: 2 | P11: 2
A12: 0 | B12: 0 | C12: 0 | D12: 0 | E12: 0 | F12: 0 | G12: 0 | H12: 1 | I12: 1 | J12: 1 | K12: 1 | L12: 1 | M12: 2 | N12: 2 | O12: 2 | P12: 3
A13: 0 | B13: 0 | C13: 0 | D13: 0 | E13: 0 | F13: 0 | G13: 0 | H13: 1 | I13: 1 | J13: 1 | K13: 1 | L13: 1 | M13: 2 | N13: 2 | O13: 2 | P13: 3
A14: 0 | B14: 0 | C14: 0 | D14: 0 | E14: 0 | F14: 0 | G14: 0 | H14: 1 | I14: 1 | J14: 1 | K14: 1 | L14: 1 | M14: 2 | N14: 2 | O14: 2 | P14: 3
A15: 0 | B15: 0 | C15: 0 | D15: 0 | E15: 0 | F15: 0 | G15: 1 | H15: 1 | I15: 1 | J15: 1 | K15: 1 | L15: 2 | M15: 2 | N15: 2 | O15: 2 | P15: 3
A16: 0 | B16: 0 | C16: 0 | D16: 0 | E16: 0 | F16: 0 | G16: 1 | H16: 1 | I16: 1 | J16: 1 | K16: 1 | L16: 2 | M16: 2 | N16: 2 | O16: 2 | P16: 3
A17: 0 | B17: 0 | C17: 0 | D17: 0 | E17: 0 | F17: 0 | G17: 1 | H17: 1 | I17: 1 | J17: 1 | K17: 1 | L17: 2 | M17: 2 | N17: 2 | O17: 2 | P17: 3
A18: 0 | B18: 0 | C18: 0 | D18: 0 | E18: 0 | F18: 0 | G18: 1 | H18: 1 | I18: 1 | J18: 1 | K18: 1 | L18: 2 | M18: 2 | N18: 2 | O18: 2 | P18: 3
A19: 0 | B19: 0 | C19: 0 | D19: 0 | E19: 0 | F19: 0 | G19: 1 | H19: 1 | I19: 1 | J19: 1 | K19: 1 | L19: 2 | M19: 2 | N19: 2 | O19: 2 | P19: 3
A20: 0 | B20: 0 | C20: 0 | D20: 0 | E20: 0 | F20: 1 | G20: 1 | H20: 1 | I20: 1 | J20: 1 | K20: 1 | L20: 2 | M20: 2 | N20: 2 | O20: 3 | P20: 3
A21: 0 | B21: 0 | C21: 0 | D21: 0 | E21: 0 | F21: 1 | G21: 1 | H21: 1 | I21: 1 | J21: 1 | K21: 1 | L21: 2 | M21: 2 | N21: 2 | O21: 3 | P21: 3
A22: 0 | B22: 0 | C22: 0 | D22: 0 | E22: 0 | F22: 1 | G22: 1 | H22: 1 | I22: 1 | J22: 1 | K22: 1 | L22: 2 | M22: 2 | N22: 2 | O22: 3 | P22: 3
A23: 0 | B23: 0 | C23: 0 | D23: 0 | E23: 0 | F23: 1 | G23: 1 | H23: 1 | I23: 1 | J23: 1 | K23: 2 | L23: 2 | M23: 2 | N23: 3 | O23: 3 | P23: 3
A24: 0 | B24: 0 | C24: 0 | D24: 0 | E24: 0 | F24: 1 | G24: 1 | H24: 1 | I24: 1 | J24: 1 | K24: 2 | L24: 2 | M24: 2 | N24: 3 | O24: 3 | P24: 3
A25: 0 | B25: 0 | C25: 0 | D25: 0 | E25: 0 | F25: 1 | G25: 1 | H25: 1 | I25: 1 | J25: 1 | K25: 2 | L25: 2 | M25: 2 | N25: 3 | O25: 3 | P25: 3
A26: 0 | B26: 0 | C26: 0 | D26: 0 | E26: 1 | F26: 1 | G26: 1 | H26: 1 | I26: 1 | J26: 1 | K26: 2 | L26: 2 | M26: 3 | N26: 3 | O26: 3 | P26: 3
A27: 0 | B27: 0 | C27: 0 | D27: 0 | E27: 1 | F27: 1 | G27: 1 | H27: 1 | I27: 1 | J27: 1 | K27: 2 | L27: 2 | M27: 3 | N27: 3 | O27: 3 | P27: 3
A28: 0 | B28: 0 | C28: 0 | D28: 0 | E28: 1 | F28: 1 | G28: 1 | H28: 1 | I28: 1 | J28: 2 | K28: 2 | L28: 2 | M28: 3 | N28: 3 | O28: 3 | P28: 3
A29: 0 | B29: 0 | C29: 0 | D29: 1 | E29: 1 | F29: 1 | G29: 1 | H29: 1 | I29: 1 | J29: 2 | K29: 2 | L29: 2 | M29: 3 | N29: 3 | O29: 3 | P29: 4
A30: 0 | B30: 0 | C30: 0 | D30: 1 | E30: 1 | F30: 1 | G30: 1 | H30: 1 | I30: 1 | J30: 2 | K30: 2 | L30: 2 | M30: 3 | N30: 3 | O30: 3 | P30: 4
A31: 0 | B31: 0 | C31: 0 | D31: 1 | E31: 1 | F31: 1 | G31: 1 | H31: 1 | I31: 1 | J31: 2 | K31: 2 | L31: 2 | M31: 3 | N31: 3 | O31: 3 | P31: 4
A32: 0 | B32: 0 | C32: 1 | D32: 1 | E32: 1 | F32: 1 | G32: 1 | H32: 1 | I32: 1 | J32: 2 | K32: 2 | L32: 3 | M32: 3 | N32: 3 | O32: 3 | P32: 4
A33: 0 | B33: 0 | C33: 1 | D33: 1 | E33: 1 | F33: 1 | G33: 1 | H33: 1 | I33: 1 | J33: 2 | K33: 2 | L33: 3 | M33: 3 | N33: 3 | O33: 4 | P33: 4
A34: 0 | B34: 1 | C34: 1 | D34: 1 | E34: 1 | F34: 1 | G34: 1 | H34: 1 | I34: 1 | J34: 2 | K34: 2 | L34: 3 | M34: 3 | N34: 3 | O34: 4 | P34: 4
A35: 1 | B35: 1 | C35: 1 | D35: 1 | E35: 1 | F35: 1 | G35: 1 | H35: 1 | I35: 1 | J35: 2 | K35: 2 | L35: 3 | M35: 3 | N35: 3 | O35: 4 | P35: 5
A36: 1 | B36: 1 | C36: 1 | D36: 1 | E36: 1 | F36: 1 | G36: 1 | H36: 1 | I36: 1 | J36: 2 | K36: 2 | L36: 3 | M36: 3 | N36: 4 | O36: 4 | P36: 5
A37: 1/3 | B37: 1/2.5 | C37: 1/2 | D37: 1/1.5 | E37: 1/1 | F37: 1.5/1 | G37: 2/1 | H37: 2.5/1 | I37: 3/1 | J37: 4/1 | K37: 5/1 | L37: 6/1 | M37: 7/1 | N37: 8/1 | O37: 9/1 | P37: 10/1

Sheet 白兵戦結果表
A1: AR | B1: AD | C1: AD | D1: AD | H1: *2/1 | I1: 3/2 | J1: DD
A2: AR | B2: AD | C2: AD | H2: 1/2 | I2: DD | J2: DD
A3: AR | B3: AD | G3: *2/2 | H3: 0/2 | I3: DD | J3: DD
A4: AR | B4: AD | G4: 3/3 | H4: 0/1* | I4: DD | J4: DD
A5: AD | B5: AD | G5: 2/4 | H5: 1/1* | I5: DD | J5: DD
A6: AD | F6: 0/0* | G6: 3/1 | H6: DD | I6: DD | J6: DD
A7: AD | F7: 2/3 | G7: 0/1* | H7: DD | I7: DD | J7: DD
A8: AD | F8: 0/2 | G8: DD | H8: DD | I8: DD | J8: DD
A9: AD | E9: 1/4 | F9: *2/0 | G9: DD | H9: DD | I9: DD | J9: DD
A10: AD | E10: 2/3 | F10: 1/2 | G10: DD | H10: DD | I10: DD | J10: DD
A11: AD | D11: 0/3 | E11: *0/0 | F11: 0/1 | G11: DD | H11: DD | I11: DD | J11: DD
A12: AD | D12: 1/2 | E12: 1/1* | F12: *2/3 | G12: DD | H12: DD | I12: DD | J12: DD
A13: AD | D13: *2/1 | E13: 2/3* | F13: 1/2* | G13: DD | H13: DD | I13: DD | J13: DD
A14: AD | E14: 3/3 | F14: DD | G14: DD | H14: DD | I14: DD | J14: DD
A15: AD | C15: 1/2 | D15: 0/1* | E15: 0/1 | F15: DD | G15: DD | H15: DD | I15: DD | J15: DR
A16: AD | D16: 1/0 | E16: 1/0 | F16: DD | G16: DD | H16: DD | I16: DD | J16: DR
C17: 1/1 | D17: 3/2 | E17: 2/2* | F17: DD | G17: DD | H17: DD | I17: DD | J17: DR
C18: *2/0 | D18: 1/1 | E18: DD | F18: DD | G18: DD | H18: DD | I18: DD | J18: DR
C19: 0/1* | D19: 2/2* | E19: DD | F19: DD | G19: DD | H19: DD | I19: DD | J19: DR
B20: *2/0 | C20: 1/1 | D20: *1/2 | E20: DD | F20: DD | G20: DD | H20: DD | I20: DR | J20: DR
B21: 2/1* | C21: 2/2* | D21: *1/1 | E21: DD | F21: DD | G21: DD | H21: DD | I21: DR | J21: DR
B22: 2/1 | C22: 3/1 | D22: 0/2* | E22: DD | F22: DD | G22: DD | H22: DD | I22: DR | J22: DR
B23: *1/1 | C23: 0/2 | D23: DD | E23: DD | F23: DD | G23: DD | H23: DD | I23: DR | J23: DR
B24: 1/2 | C24: 2/1 | D24: DD | E24: DD | F24: DD | G24: DD | H24: DD | I24: DR | J24: DR
B25: 1/1 | C25: 1/1* | D25: DD | E25: DD | F25: DD | G25: DD | H25: DD | I25: DR | J25: DR
A26: *0/0 | B26: 0/0* | C26: *2/1 | D26: DD | E26: DD | F26: DD | G26: DD | H26: DD | I26: DR | J26: DR
A27: 1/1 | B27: 2/1 | C27: DD | D27: DD | E27: DD | F27: DD | G27: DD | H27: DD | I27: DR | J27: DR
A28: 1/2* | B28: *1/2 | C28: DD | D28: DD | E28: DD | F28: DD | G28: DD | H28: DD | I28: DR | J28: DR
A29: 0/1 | B29: 2/2 | C29: DD | D29: DD | E29: DD | F29: DD | G29: DD | H29: DD | I29: DR | J29: DR
A30: 1/0* | C30: DD | D30: DD | E30: DD | F30: DD | G30: DD | H30: DR | I30: DR | J30: DR
A31: 0/2 | B31: 1/0* | C31: DD | D31: DD | E31: DD | F31: DD | G31: DD | H31: DR | I31: DR | J31: DR
A32: 2/1* | B32: DD | C32: DD | D32: DD | E32: DD | F32: DD | G32: DR | H32: DR | I32: DR | J32: DS
B33: DD | C33: DD | D33: DD | E33: DD | F33: DD | G33: DR | H33: DR | I33: DR | J33: DS
A34: 2/2 | B34: DD | C34: DD | D34: DD | E34: DD | F34: DD | G34: DR | H34: DR | I34: DR | J34: DS
A35: DD | B35: DD | C35: DD | D35: DD | E35: DD | F35: DR | G35: DR | H35: DR | I35: DR | J35: DS
A36: DD | B36: DD | C36: DD | D36: DD | E36: DD | F36: DR | G36: DR | H36: DR | I36: DS | J36: DS
A37: 1/2 | B37: 1/1 | C37: 1.5/1 | D37: 2/1 | E37: 2.5/1 | F37: 3/1 | G37: 3.5/1 | H37: 4/1 | I37: 4.5/1 | J37: 5/1
A41: space | B41: AD | C41: AR | D41: DD | E41: DR | F41: DS
A42: * | B42: n | C42: / | D42: m | E42: *
